[Event "44th Chess Olympiad Open 2022"]
[Site "Chennai"]
[Date "2022.08.02"]
[Round "5.66"]
[White "Iclicki, Willy"]
[Black "Brookfield, Toby"]
[Result "1-0"]
[WhiteElo "1975"]
[BlackElo "1815"]
[Annotator "NA RC"]
[PlyCount "141"]
[EventDate "2022.??.??"]
[TimeControl "60"]

1. d4 {[%emt 0:00:03]} f5 {[%emt 0:00:06]} 2. Nc3 {[%emt 0:00:13]} Nf6 {
[%emt 0:00:29]} 3. Bg5 {[%emt 0:01:11]} d5 {[%emt 0:00:29]} 4. f3 {[%emt 0:00:
00]} Be6 {[%emt 0:10:00]} 5. e3 {[%emt 0:12:46]} a6 {[%emt 0:01:05]} 6. Bd3 {
[%emt 0:00:22]} g6 {[%emt 0:02:27]} 7. Nge2 {[%emt 0:01:38]} Bg7 {[%emt 0:00:
00]} 8. Qd2 {[%emt 0:05:14]} Nc6 {[%emt 0:00:40]} 9. a3 {[%emt 0:00:34]} Qd7 {
[%emt 0:03:26]} 10. O-O-O {[%emt 0:03:28]} O-O-O {[%emt 0:00:09]} 11. Na4 {
[%emt 0:05:19]} Bf7 {[%emt 0:07:13]} 12. Nc5 {[%emt 0:04:15]} Qd6 {[%emt 0:00:
00]} 13. Qc3 {[%emt 0:12:21]} Nb8 {[%emt 0:10:26]} 14. Bf4 {[%emt 0:08:26]} Qc6
{[%emt 0:01:40]} 15. Be5 {[%emt 0:00:44]} Bh6 {[%emt 0:05:00]} 16. Nf4 {
[%emt 0:03:45]} g5 {[%emt 0:04:59]} 17. Bxf5+ {[%emt 0:03:32]} Nbd7 {[%emt 0:
00:00]} 18. Nfe6 {[%emt 0:12:02]} Bxe6 {[%emt 0:03:34]} 19. Bxe6 {[%emt 0:00:
00]} Rhe8 {[%emt 0:06:54]} 20. Bxf6 {[%emt 0:06:04]} exf6 {[%emt 0:00:20]} 21.
Bxd7+ {[%emt 0:00:34]} Rxd7 {[%emt 0:00:44]} 22. Nxd7 {[%emt 0:00:13]} Qxd7 {
[%emt 0:02:01]} 23. g4 {[%emt 0:03:12]} Re6 {[%emt 0:00:13]} 24. Qd3 {[%emt 0:
00:00]} Bf8 {[%emt 0:01:30]} 25. Qf5 {[%emt 0:02:04]} Kb8 {[%emt 0:01:06]} 26.
Rd3 {[%emt 0:00:38]} Qe8 {[%emt 0:01:37]} 27. Kb1 {[%emt 0:02:45]} h6 {[%emt 0:
00:00]} 28. Rhd1 {[%emt 0:00:52]} Bd6 {[%emt 0:02:13]} 29. Qxd5 {[%emt 0:00:53]
} Rxe3 {[%emt 0:00:27]} 30. Rxe3 {[%emt 0:00:35]} Qxe3 {[%emt 0:00:09]} 31. Qe4
{[%emt 0:00:27]} Qf2 {[%emt 0:00:33]} 32. Rd3 {[%emt 0:01:33]} Qxh2 {[%emt 0:
00:00]} 33. Rb3 {[%emt 0:00:34]} b6 {[%emt 0:00:29]} 34. a4 {[%emt 0:00:31]} a5
{[%emt 0:00:23]} 35. c4 {[%emt 0:00:46]} Ka7 {[%emt 0:01:55]} 36. Ka2 {[%emt 0:
00:00]} Qd2 {[%emt 0:03:22]} 37. c5 {[%emt 0:00:37]} Bf8 {[%emt 0:02:00]} 38.
cxb6+ {[%emt 0:00:29]} cxb6 {[%emt 0:00:11]} 39. Qd5 {[%emt 0:00:39]} Bb4 {
[%emt 0:01:17]} 40. Qd7+ {[%emt 0:00:46]} Ka6 {[%emt 0:03:35]} 41. Qc8+ {
[%emt 0:30:47]} Ka7 {[%emt 0:30:07]} 42. Qc7+ {[%emt 0:00:00]} Ka6 {[%emt 0:00:
00]} 43. Qc4+ {[%emt 0:00:00]} Ka7 {[%emt 0:00:00]} 44. d5 {[%emt 0:00:00]} Qh2
{[%emt 0:00:00]} 45. Qc6 {[%emt 0:00:00]} Qf4 {[%emt 0:00:00]} 46. d6 {[%emt 0:
00:00]} Qxd6 {[%emt 0:00:00]} 47. Qxd6 {[%emt 0:00:00]} Bxd6 {[%emt 0:00:00]}
48. Rd3 {[%emt 0:00:00]} Be5 {[%emt 0:00:00]} 49. Rd7+ {[%emt 0:00:00]} Ka6 {
[%emt 0:00:00]} 50. b3 {[%emt 0:00:00]} b5 {[%emt 0:00:00]} 51. Kb1 {[%emt 0:
00:00]} bxa4 {[%emt 0:00:00]} 52. bxa4 {[%emt 0:00:00]} Kb6 {[%emt 0:00:00]}
53. Kc2 {[%emt 0:00:00]} Kc5 {[%emt 0:00:00]} 54. Kb3 {[%emt 0:00:00]} Bf4 {
[%emt 0:01:31]} 55. Rd1 {[%emt 0:03:19]} Be5 {[%emt 0:01:43]} 56. Rd8 {[%emt 0:
00:00]} Bf4 {[%emt 0:02:11]} 57. Re8 {[%emt 0:03:08]} Be5 {[%emt 0:00:33]} 58.
Rd8 {[%emt 0:00:35]} Bf4 {[%emt 0:00:41]} 59. Rd1 {[%emt 0:00:30]} Be5 {
[%emt 0:00:25]} 60. Re1 {[%emt 0:00:36]} Kd4 {[%emt 0:02:20]} 61. Kc2 {[%emt 0:
00:00]} Kc4 {[%emt 0:01:20]} 62. Re4+ {[%emt 0:00:25]} Kc5 {[%emt 0:01:34]} 63.
Kd3 {[%emt 0:00:10]} Kd5 {[%emt 0:01:54]} 64. Re1 {[%emt 0:00:34]} Kc5 {
[%emt 0:01:00]} 65. Rb1 {[%emt 0:00:14]} Bc7 {[%emt 0:03:58]} 66. Rb5+ {
[%emt 0:00:28]} Kd6 {[%emt 0:00:35]} 67. Ke4 {[%emt 0:00:10]} Ke6 {[%emt 0:00:
00]} 68. Rc5 {[%emt 0:01:03]} Bd8 {[%emt 0:01:10]} 69. Rc6+ {[%emt 0:00:17]}
Kf7 {[%emt 0:01:45]} 70. Kf5 {[%emt 0:00:09]} Be7 {[%emt 0:00:48]} 71. Rc7 {
[%emt 0:00:19]} 1-0

[Event "44th Chess Olympiad Open 2022"]
[Site "Chennai"]
[Date "2022.08.02"]
[Round "5.66"]
[White "Nevska, Gerda"]
[Black "Mannhart, Marcel"]
[Result "0-1"]
[WhiteElo "1840"]
[BlackElo "2110"]
[Annotator "NA RC"]
[PlyCount "88"]
[EventDate "2022.??.??"]
[TimeControl "60"]

1. d4 {[%emt 0:00:20]} d6 {[%emt 0:00:21]} 2. e4 {[%emt 0:00:17]} g6 {[%emt 0:
00:00]} 3. Nc3 {[%emt 0:00:12]} Bg7 {[%emt 0:00:06]} 4. f4 {[%emt 0:00:53]} a6
{[%emt 0:00:36]} 5. Nf3 {[%emt 0:01:53]} b5 {[%emt 0:00:40]} 6. Bd3 {[%emt 0:
00:00]} Nd7 {[%emt 0:04:13]} 7. O-O {[%emt 0:02:44]} Bb7 {[%emt 0:00:43]} 8.
Be3 {[%emt 0:01:58]} c5 {[%emt 0:02:57]} 9. dxc5 {[%emt 0:07:22]} dxc5 {
[%emt 0:01:49]} 10. Nxb5 {[%emt 0:04:58]} axb5 {[%emt 0:08:08]} 11. Bxb5 {
[%emt 0:00:28]} Rc8 {[%emt 0:02:51]} 12. Ne5 {[%emt 0:08:18]} Ngf6 {[%emt 0:00:
00]} 13. Qe2 {[%emt 0:05:20]} Qc7 {[%emt 0:04:25]} 14. Rad1 {[%emt 0:04:12]}
Rd8 {[%emt 0:03:04]} 15. Nxd7 {[%emt 0:20:19]} Nxd7 {[%emt 0:00:26]} 16. Qg4 {
[%emt 0:00:32]} Bc6 {[%emt 0:03:51]} 17. Bxc6 {[%emt 0:01:03]} Qxc6 {[%emt 0:
00:00]} 18. f5 {[%emt 0:00:27]} O-O {[%emt 0:02:15]} 19. fxg6 {[%emt 0:00:34]}
hxg6 {[%emt 0:00:21]} 20. Qg5 {[%emt 0:05:23]} Bf6 {[%emt 0:06:56]} 21. Qd5 {
[%emt 0:00:53]} Qc7 {[%emt 0:03:37]} 22. b3 {[%emt 0:03:14]} Be5 {[%emt 0:00:
00]} 23. h4 {[%emt 0:03:14]} c4 {[%emt 0:06:58]} 24. Qxc4 {[%emt 0:07:59]} Qxc4
{[%emt 0:00:31]} 25. bxc4 {[%emt 0:00:07]} Bf6 {[%emt 0:05:39]} 26. h5 {
[%emt 0:03:31]} gxh5 {[%emt 0:00:39]} 27. c5 {[%emt 0:00:26]} Ne5 {[%emt 0:00:
00]} 28. Rd5 {[%emt 0:00:38]} Ng4 {[%emt 0:02:09]} 29. Bc1 {[%emt 0:03:29]}
Bd4+ {[%emt 0:05:38]} 30. Kh1 {[%emt 0:01:57]} Rxd5 {[%emt 0:00:41]} 31. exd5 {
[%emt 0:00:03]} Bxc5 {[%emt 0:00:17]} 32. Rf5 {[%emt 0:00:26]} Nf6 {[%emt 0:00:
00]} 33. Bf4 {[%emt 0:04:02]} Bd4 {[%emt 0:03:45]} 34. d6 {[%emt 0:04:06]} exd6
{[%emt 0:00:32]} 35. Bxd6 {[%emt 0:00:06]} Re8 {[%emt 0:00:21]} 36. c4 {
[%emt 0:02:13]} Re1+ {[%emt 0:00:20]} 37. Kh2 {[%emt 0:00:02]} Kg7 {[%emt 0:00:
00]} 38. a3 {[%emt 0:01:43]} Kg6 {[%emt 0:00:13]} 39. Rf3 {[%emt 0:00:12]} Ne4
{[%emt 0:01:56]} 40. Bb4 {[%emt 0:00:36]} Be5+ {[%emt 0:02:10]} 41. g3 {
[%emt 0:05:19]} Re2+ {[%emt 0:01:12]} 42. Kg1 {[%emt 0:00:17]} Nxg3 {[%emt 0:
00:00]} 43. Bc5 {[%emt 0:01:18]} Rc2 {[%emt 0:03:21]} 44. Re3 {[%emt 0:02:46]}
f6 {[%emt 0:01:03]} 0-1

[Event "44th Chess Olympiad Open 2022"]
[Site "Chennai"]
[Date "2022.08.02"]
[Round "5.66"]
[White "Morgan, Jamie"]
[Black "Schadler, Martin"]
[Result "1-0"]
[WhiteElo "1753"]
[BlackElo "1939"]
[Annotator "NA RC"]
[PlyCount "59"]
[EventDate "2022.??.??"]
[TimeControl "60"]

1. e4 {[%emt 0:00:11]} d5 {[%emt 0:00:13]} 2. exd5 {[%emt 0:00:08]} Nf6 {
[%emt 0:00:09]} 3. Bb5+ {[%emt 0:00:18]} Bd7 {[%emt 0:00:08]} 4. Be2 {[%emt 0:
00:00]} Nxd5 {[%emt 0:02:23]} 5. d4 {[%emt 0:04:05]} c6 {[%emt 0:02:00]} 6. Nf3
{[%emt 0:00:32]} e6 {[%emt 0:05:35]} 7. O-O {[%emt 0:02:27]} Bd6 {[%emt 0:00:
00]} 8. c4 {[%emt 0:02:49]} Nf6 {[%emt 0:01:25]} 9. Nc3 {[%emt 0:01:26]} Qc7 {
[%emt 0:02:33]} 10. h3 {[%emt 0:04:57]} Na6 {[%emt 0:04:30]} 11. c5 {[%emt 0:
00:00]} Be7 {[%emt 0:02:10]} 12. a3 {[%emt 0:03:28]} Rd8 {[%emt 0:00:38]} 13.
Ne5 {[%emt 0:01:43]} Bc8 {[%emt 0:00:21]} 14. Bf4 {[%emt 0:02:45]} Rg8 {
[%emt 0:08:54]} 15. b4 {[%emt 0:02:56]} b5 {[%emt 0:01:35]} 16. Qd2 {[%emt 0:
00:00]} Qb7 {[%emt 0:02:52]} 17. Bf3 {[%emt 0:03:33]} Nd5 {[%emt 0:02:31]} 18.
Rfe1 {[%emt 0:08:59]} Nac7 {[%emt 0:04:55]} 19. Re2 {[%emt 0:10:55]} Bd7 {
[%emt 0:00:51]} 20. Rae1 {[%emt 0:03:12]} Nxc3 {[%emt 0:00:55]} 21. Qxc3 {
[%emt 0:00:13]} Kf8 {[%emt 0:03:42]} 22. d5 {[%emt 0:07:13]} Bf6 {[%emt 0:00:
00]} 23. d6 {[%emt 0:00:17]} Nd5 {[%emt 0:00:10]} 24. Bxd5 {[%emt 0:03:40]}
Bxe5 {[%emt 0:09:25]} 25. Bxe5 {[%emt 0:01:41]} cxd5 {[%emt 0:00:27]} 26. Qg3 {
[%emt 0:02:15]} Bc6 {[%emt 0:01:45]} 27. Bd4 {[%emt 0:03:08]} Re8 {[%emt 0:00:
00]} 28. f4 {[%emt 0:06:02]} Bd7 {[%emt 0:05:35]} 29. f5 {[%emt 0:01:24]} exf5
{[%emt 0:00:57]} 30. Rxe8+ {[%emt 0:01:01]} 1-0

[Event "44th Chess Olympiad Open 2022"]
[Site "Chennai"]
[Date "2022.08.02"]
[Round "5.67"]
[White "Ahmad, Al Khatib"]
[Black "Bridet, Robert"]
[Result "1-0"]
[WhiteElo "2244"]
[BlackElo "1497"]
[Annotator "NA RC"]
[PlyCount "101"]
[EventDate "2022.??.??"]
[TimeControl "60"]

1. e4 {[%emt 0:00:04]} e5 {[%emt 0:00:26]} 2. Nf3 {[%emt 0:00:07]} Nc6 {
[%emt 0:01:34]} 3. Bb5 {[%emt 0:00:06]} d6 {[%emt 0:02:37]} 4. d4 {[%emt 0:00:
00]} Bd7 {[%emt 0:02:40]} 5. Nc3 {[%emt 0:03:31]} Nf6 {[%emt 0:01:40]} 6. Bxc6
{[%emt 0:01:51]} Bxc6 {[%emt 0:03:21]} 7. Qd3 {[%emt 0:00:09]} exd4 {[%emt 0:
00:00]} 8. Nxd4 {[%emt 0:00:15]} Bd7 {[%emt 0:05:05]} 9. b3 {[%emt 0:09:41]} a6
{[%emt 0:06:06]} 10. Bb2 {[%emt 0:00:53]} Be7 {[%emt 0:07:59]} 11. O-O-O {
[%emt 0:00:43]} Ng4 {[%emt 0:05:10]} 12. Qe2 {[%emt 0:07:10]} Ne5 {[%emt 0:00:
00]} 13. f4 {[%emt 0:05:31]} Nc6 {[%emt 0:07:19]} 14. Nd5 {[%emt 0:04:07]} Nxd4
{[%emt 0:03:55]} 15. Bxd4 {[%emt 0:00:06]} O-O {[%emt 0:03:15]} 16. f5 {
[%emt 0:02:33]} Bg5+ {[%emt 0:08:04]} 17. Kb1 {[%emt 0:00:31]} c5 {[%emt 0:00:
00]} 18. h4 {[%emt 0:02:59]} Be7 {[%emt 0:03:52]} 19. f6 {[%emt 0:04:57]} gxf6
{[%emt 0:00:49]} 20. Bb2 {[%emt 0:00:25]} Kh8 {[%emt 0:01:13]} 21. Rhf1 {
[%emt 0:00:46]} Kg8 {[%emt 0:04:59]} 22. Qh5 {[%emt 0:02:25]} f5 {[%emt 0:00:
00]} 23. Rd3 {[%emt 0:00:56]} f6 {[%emt 0:01:06]} 24. Rg3+ {[%emt 0:02:44]} Kh8
{[%emt 0:00:18]} 25. Qh6 {[%emt 0:00:22]} Rf7 {[%emt 0:01:24]} 26. Nf4 {
[%emt 0:00:38]} Qg8 {[%emt 0:04:35]} 27. Ng6+ {[%emt 0:01:28]} Qxg6 {[%emt 0:
00:00]} 28. Rxg6 {[%emt 0:00:05]} Bf8 {[%emt 0:01:59]} 29. Rxf6 {[%emt 0:02:42]
} Bxh6 {[%emt 0:04:40]} 30. Rxf7+ {[%emt 0:00:08]} Kg8 {[%emt 0:00:19]} 31.
Rxd7 {[%emt 0:00:20]} fxe4 {[%emt 0:00:59]} 32. Rxd6 {[%emt 0:00:36]} Bf8 {
[%emt 0:00:09]} 33. Re6 {[%emt 0:00:25]} b5 {[%emt 0:00:31]} 34. Rxe4 {[%emt 0:
00:00]} Ra7 {[%emt 0:00:35]} 35. Rg4+ {[%emt 0:00:18]} Bg7 {[%emt 0:00:14]} 36.
Bxg7 {[%emt 0:00:41]} Rxg7 {[%emt 0:00:12]} 37. Rxg7+ {[%emt 0:00:07]} Kxg7 {
[%emt 0:00:19]} 38. Rf5 {[%emt 0:00:26]} c4 {[%emt 0:00:13]} 39. g4 {[%emt 0:
00:00]} cxb3 {[%emt 0:00:22]} 40. cxb3 {[%emt 0:00:08]} Kg6 {[%emt 0:00:12]}
41. h5+ {[%emt 0:30:05]} Kg7 {[%emt 0:30:25]} 42. g5 {[%emt 0:00:08]} h6 {
[%emt 0:00:30]} 43. g6 {[%emt 0:00:04]} a5 {[%emt 0:00:11]} 44. Rf7+ {[%emt 0:
00:00]} Kg8 {[%emt 0:00:25]} 45. Kc2 {[%emt 0:00:05]} a4 {[%emt 0:00:18]} 46.
Kd3 {[%emt 0:00:05]} axb3 {[%emt 0:00:41]} 47. axb3 {[%emt 0:00:04]} b4 {
[%emt 0:00:29]} 48. Ke4 {[%emt 0:00:07]} Kh8 {[%emt 0:00:09]} 49. Kf5 {[%emt 0:
00:00]} Kg8 {[%emt 0:00:36]} 50. Kf6 {[%emt 0:00:07]} Kh8 {[%emt 0:00:23]} 51.
Rf8# {[%emt 0:00:04]} 1-0

[Event "44th Chess Olympiad Open 2022"]
[Site "Chennai"]
[Date "2022.08.02"]
[Round "5.67"]
[White "Boshra, Alshaeby"]
[Black "Thomas, Larry"]
[Result "1-0"]
[WhiteElo "1854"]
[BlackElo "1317"]
[Annotator "NA RC"]
[PlyCount "106"]
[EventDate "2022.??.??"]
[TimeControl "60"]

1. Nf3 {[%emt 0:00:05]} Nf6 {[%emt 0:00:21]} 2. g3 {[%emt 0:00:05]} g6 {
[%emt 0:00:44]} 3. Bg2 {[%emt 0:00:05]} Bg7 {[%emt 0:00:34]} 4. O-O {[%emt 0:
00:00]} d5 {[%emt 0:02:10]} 5. d3 {[%emt 0:00:06]} O-O {[%emt 0:00:40]} 6. c3 {
[%emt 0:00:59]} c6 {[%emt 0:01:14]} 7. Qa4 {[%emt 0:00:26]} Nbd7 {[%emt 0:00:
00]} 8. Qh4 {[%emt 0:00:52]} Re8 {[%emt 0:02:04]} 9. Bh6 {[%emt 0:01:14]} Nf8 {
[%emt 0:01:38]} 10. h3 {[%emt 0:10:45]} e5 {[%emt 0:03:25]} 11. Nbd2 {[%emt 0:
00:00]} a5 {[%emt 0:00:46]} 12. g4 {[%emt 0:18:04]} Qd6 {[%emt 0:10:32]} 13.
Ng5 {[%emt 0:17:19]} b5 {[%emt 0:14:48]} 14. Bxg7 {[%emt 0:00:25]} Kxg7 {
[%emt 0:00:47]} 15. Qh6+ {[%emt 0:00:07]} Kg8 {[%emt 0:03:32]} 16. Ndf3 {
[%emt 0:06:51]} Ra7 {[%emt 0:08:30]} 17. e4 {[%emt 0:06:20]} dxe4 {[%emt 0:00:
00]} 18. dxe4 {[%emt 0:00:26]} Rae7 {[%emt 0:02:00]} 19. Rfd1 {[%emt 0:03:21]}
Qc5 {[%emt 0:08:55]} 20. Ne1 {[%emt 0:01:13]} Rd7 {[%emt 0:09:06]} 21. Rxd7 {
[%emt 0:00:20]} N6xd7 {[%emt 0:01:28]} 22. Rd1 {[%emt 0:00:46]} Qe7 {[%emt 0:
00:00]} 23. Nc2 {[%emt 0:04:39]} Nf6 {[%emt 0:01:44]} 24. Ne3 {[%emt 0:01:55]}
Rd8 {[%emt 0:01:21]} 25. Rxd8 {[%emt 0:00:40]} Qxd8 {[%emt 0:00:18]} 26. Nf3 {
[%emt 0:00:42]} Qd6 {[%emt 0:02:18]} 27. Qg5 {[%emt 0:01:56]} N8d7 {[%emt 0:00:
00]} 28. Nf5 {[%emt 0:02:10]} Qe6 {[%emt 0:01:20]} 29. Nh6+ {[%emt 0:04:15]}
Kf8 {[%emt 0:02:24]} 30. a3 {[%emt 0:06:23]} Nxe4 {[%emt 0:02:23]} 31. Qd8+ {
[%emt 0:00:13]} Qe8 {[%emt 0:00:28]} 32. Qxa5 {[%emt 0:00:19]} Kg7 {[%emt 0:00:
00]} 33. Qb4 {[%emt 0:03:17]} Nec5 {[%emt 0:00:00]} 34. g5 {[%emt 0:00:15]} Qe6
{[%emt 0:00:00]} 35. Qa5 {[%emt 0:01:06]} Nd3 {[%emt 0:00:00]} 36. Qd8 {
[%emt 0:00:22]} Nf8 {[%emt 0:00:00]} 37. Qxd3 {[%emt 0:00:09]} f5 {[%emt 0:00:
00]} 38. gxf6+ {[%emt 0:00:40]} Qxf6 {[%emt 0:00:00]} 39. Qe3 {[%emt 0:01:36]}
Nd7 {[%emt 0:00:20]} 40. Ng4 {[%emt 0:00:14]} Qf4 {[%emt 0:00:40]} 41. Ngxe5 {
[%emt 0:30:50]} Qxe3 {[%emt 0:00:47]} 42. fxe3 {[%emt 0:00:00]} c5 {[%emt 0:00:
00]} 43. Nxd7 {[%emt 0:00:00]} Bxd7 {[%emt 0:00:14]} 44. Ne5 {[%emt 0:00:00]}
Be8 {[%emt 0:00:28]} 45. Bc6 {[%emt 0:00:00]} Bxc6 {[%emt 0:00:32]} 46. Nxc6 {
[%emt 0:00:00]} Kf6 {[%emt 0:00:53]} 47. Na7 {[%emt 0:00:00]} b4 {[%emt 0:00:
00]} 48. cxb4 {[%emt 0:00:00]} cxb4 {[%emt 0:00:05]} 49. axb4 {[%emt 0:00:00]}
Ke5 {[%emt 0:00:12]} 50. b5 {[%emt 0:00:00]} Kd6 {[%emt 0:00:03]} 51. e4 {
[%emt 0:00:00]} h5 {[%emt 0:00:38]} 52. b6 {[%emt 0:00:00]} g5 {[%emt 0:00:32]}
53. e5+ {[%emt 0:00:00]} Kd5 {[%emt 0:01:28]} 1-0

[Event "44th Chess Olympiad Open 2022"]
[Site "Chennai"]
[Date "2022.08.02"]
[Round "5.68"]
[White "Khan, Taffin"]
[Black "Beukes, Dante M"]
[Result "0-1"]
[WhiteElo "2019"]
[BlackElo "2234"]
[Annotator "NA RC"]
[PlyCount "72"]
[EventDate "2022.??.??"]
[TimeControl "60"]

1. d4 {[%emt 0:00:05]} Nf6 {[%emt 0:00:05]} 2. Nf3 {[%emt 0:00:06]} g6 {
[%emt 0:00:09]} 3. Bg5 {[%emt 0:00:11]} Bg7 {[%emt 0:00:05]} 4. Nbd2 {[%emt 0:
00:00]} O-O {[%emt 0:00:08]} 5. e4 {[%emt 0:00:28]} d6 {[%emt 0:00:12]} 6. Bd3
{[%emt 0:00:13]} c5 {[%emt 0:04:23]} 7. dxc5 {[%emt 0:04:00]} dxc5 {[%emt 0:00:
00]} 8. Qe2 {[%emt 0:00:08]} Nc6 {[%emt 0:01:54]} 9. c3 {[%emt 0:01:06]} a6 {
[%emt 0:05:43]} 10. a4 {[%emt 0:00:21]} Be6 {[%emt 0:02:32]} 11. O-O {[%emt 0:
00:00]} Qc7 {[%emt 0:01:02]} 12. Rfe1 {[%emt 0:02:47]} Na5 {[%emt 0:15:58]} 13.
Nc4 {[%emt 0:21:21]} Rfe8 {[%emt 0:11:04]} 14. Nxa5 {[%emt 0:02:58]} Qxa5 {
[%emt 0:00:06]} 15. Bc4 {[%emt 0:00:10]} Bxc4 {[%emt 0:10:53]} 16. Qxc4 {
[%emt 0:00:11]} Nd7 {[%emt 0:01:14]} 17. b4 {[%emt 0:05:47]} Qc7 {[%emt 0:00:
00]} 18. Rac1 {[%emt 0:05:09]} Rac8 {[%emt 0:01:46]} 19. a5 {[%emt 0:05:36]}
Qc6 {[%emt 0:04:48]} 20. Bd2 {[%emt 0:10:59]} Qd6 {[%emt 0:04:29]} 21. Red1 {
[%emt 0:11:59]} cxb4 {[%emt 0:03:56]} 22. Qxb4 {[%emt 0:00:25]} Qc6 {[%emt 0:
00:00]} 23. Be3 {[%emt 0:04:11]} Nf6 {[%emt 0:03:53]} 24. e5 {[%emt 0:06:30]}
Nd5 {[%emt 0:06:14]} 25. Qb3 {[%emt 0:00:19]} Nxe3 {[%emt 0:03:32]} 26. fxe3 {
[%emt 0:00:10]} Rc7 {[%emt 0:04:44]} 27. c4 {[%emt 0:02:38]} Rec8 {[%emt 0:00:
00]} 28. Rd5 {[%emt 0:04:30]} e6 {[%emt 0:01:35]} 29. Nd4 {[%emt 0:02:15]} Qe8
{[%emt 0:01:39]} 30. Rd6 {[%emt 0:00:13]} Bxe5 {[%emt 0:00:09]} 31. Rb6 {
[%emt 0:00:11]} Qe7 {[%emt 0:00:44]} 32. Rb1 {[%emt 0:01:17]} Rxc4 {[%emt 0:00:
00]} 33. Rxb7 {[%emt 0:01:41]} Bxh2+ {[%emt 0:00:45]} 34. Kf1 {[%emt 0:01:54]}
Qf6+ {[%emt 0:00:28]} 35. Ke2 {[%emt 0:01:14]} Qg5 {[%emt 0:00:30]} 36. Rf1 {
[%emt 0:05:27]} Rc3 {[%emt 0:01:16]} 0-1

[Event "44th Chess Olympiad Open 2022"]
[Site "Chennai"]
[Date "2022.08.02"]
[Round "5.68"]
[White "Ndahangwapo, Heskiel"]
[Black "Lee, Ethan"]
[Result "1-0"]
[WhiteElo "1904"]
[BlackElo "1629"]
[Annotator "NA RC"]
[PlyCount "100"]
[EventDate "2022.??.??"]
[TimeControl "60"]

1. d4 {[%emt 0:00:03]} d5 {[%emt 0:00:11]} 2. c4 {[%emt 0:00:06]} Nf6 {[%emt 0:
00:00]} 3. Nf3 {[%emt 0:00:05]} e6 {[%emt 0:00:15]} 4. g3 {[%emt 0:00:04]} dxc4
{[%emt 0:00:11]} 5. Nbd2 {[%emt 0:00:10]} c5 {[%emt 0:04:40]} 6. dxc5 {[%emt 0:
00:00]} Nc6 {[%emt 0:01:32]} 7. Bg2 {[%emt 0:00:10]} Bxc5 {[%emt 0:04:01]} 8.
O-O {[%emt 0:00:07]} O-O {[%emt 0:03:57]} 9. Qc2 {[%emt 0:00:09]} Qc7 {[%emt 0:
00:00]} 10. Nxc4 {[%emt 0:01:32]} Rd8 {[%emt 0:14:44]} 11. Bf4 {[%emt 0:00:13]}
e5 {[%emt 0:14:06]} 12. Bxe5 {[%emt 0:05:45]} Nxe5 {[%emt 0:02:52]} 13. Nfxe5 {
[%emt 0:00:06]} b5 {[%emt 0:03:00]} 14. Na3 {[%emt 0:05:56]} Qxe5 {[%emt 0:00:
00]} 15. Bxa8 {[%emt 0:00:26]} Bf5 {[%emt 0:01:42]} 16. e4 {[%emt 0:00:05]} Bh3
{[%emt 0:07:03]} 17. Bc6 {[%emt 0:00:32]} a6 {[%emt 0:08:19]} 18. Rfd1 {
[%emt 0:06:40]} Rxd1+ {[%emt 0:03:03]} 19. Rxd1 {[%emt 0:00:11]} h5 {[%emt 0:
00:00]} 20. Nb1 {[%emt 0:02:20]} Ng4 {[%emt 0:05:31]} 21. Rd5 {[%emt 0:03:04]}
Bxf2+ {[%emt 0:13:55]} 22. Qxf2 {[%emt 0:00:14]} Qc7 {[%emt 0:00:52]} 23. Qc5 {
[%emt 0:02:06]} Nf6 {[%emt 0:02:46]} 24. Bd7 {[%emt 0:06:57]} Qxc5+ {[%emt 0:
00:00]} 25. Rxc5 {[%emt 0:00:05]} Bxd7 {[%emt 0:00:09]} 26. Nc3 {[%emt 0:00:23]
} b4 {[%emt 0:00:26]} 27. Nd5 {[%emt 0:00:44]} Nxe4 {[%emt 0:00:06]} 28. Rc4 {
[%emt 0:00:15]} Ng5 {[%emt 0:01:18]} 29. Rxb4 {[%emt 0:00:51]} Nf3+ {[%emt 0:
00:00]} 30. Kg2 {[%emt 0:00:26]} Ne1+ {[%emt 0:00:17]} 31. Kf1 {[%emt 0:00:17]}
Nd3 {[%emt 0:00:38]} 32. Rb8+ {[%emt 0:00:13]} Kh7 {[%emt 0:00:04]} 33. Nf4 {
[%emt 0:00:06]} Nxf4 {[%emt 0:00:41]} 34. gxf4 {[%emt 0:00:05]} Be6 {[%emt 0:
00:00]} 35. b3 {[%emt 0:00:49]} Kg6 {[%emt 0:00:21]} 36. Kf2 {[%emt 0:01:05]}
Kf5 {[%emt 0:00:19]} 37. Kg3 {[%emt 0:00:26]} f6 {[%emt 0:01:00]} 38. h4 {
[%emt 0:00:17]} g5 {[%emt 0:00:39]} 39. fxg5 {[%emt 0:00:13]} fxg5 {[%emt 0:00:
00]} 40. hxg5 {[%emt 0:00:18]} Kxg5 {[%emt 0:00:03]} 41. Ra8 {[%emt 0:30:12]}
h4+ {[%emt 0:30:13]} 42. Kh2 {[%emt 0:00:09]} Kf4 {[%emt 0:00:37]} 43. Rxa6 {
[%emt 0:00:17]} Bc8 {[%emt 0:01:34]} 44. Rc6 {[%emt 0:00:25]} Bb7 {[%emt 0:00:
00]} 45. Rc4+ {[%emt 0:00:06]} Ke5 {[%emt 0:00:32]} 46. Kh3 {[%emt 0:00:26]}
Kd5 {[%emt 0:00:25]} 47. Kxh4 {[%emt 0:00:06]} Ba6 {[%emt 0:00:18]} 48. Rc1 {
[%emt 0:00:07]} Bd3 {[%emt 0:00:17]} 49. Rd1 {[%emt 0:00:28]} Kd4 {[%emt 0:00:
00]} 50. a4 {[%emt 0:00:14]} Ke4 {[%emt 0:01:16]} 1-0